bitfinex/quotes_BTCUSD_20250123
["timestamp","ask_amount","ask_price","bid_price","bid_amount"]
[1737672069573,0.23644749,104160.0,104150.0,0.01586]
[1737672070008,0.24144749,104160.0,104150.0,0.01586]
[1737672070216,0.24944749,104160.0,104150.0,0.01686]
[1737672070405,0.33034356,104160.0,104150.0,0.01686]
[1737672070785,0.26063412,104160.0,104150.0,0.01686]
[1737672071385,0.25263412,104160.0,104150.0,0.01586]
[1737672071602,0.20544749,104160.0,104150.0,0.01586]
[1737672071905,0.1081002,104160.0,104150.0,0.01586]
[1737672072492,0.1191002,104160.0,104150.0,0.01586]
[1737672072647,9.42e-05,104160.0,104150.0,0.26320729]
[1737672072871,0.0110942,104160.0,104150.0,0.26320729]
[1737672073080,0.0040942,104160.0,104150.0,0.26320729]
[1737672073252,9.42e-05,104160.0,104150.0,0.26320729]
[1737672073454,9.42e-05,104160.0,104150.0,0.11320729]
[1737672073455,0.0040942,104160.0,104150.0,0.11320729]
[1737672073865,0.0040942,104160.0,104150.0,0.11338201]
[1737672074074,0.35647758,104160.0,104150.0,0.01600071]
[1737672074274,0.39947758,104160.0,104150.0,0.01614301]
[1737672074474,0.39947758,104160.0,104150.0,0.0160023]
[1737672074728,0.4274749,104160.0,104150.0,0.0160023]
[1737672074901,0.40247758,104160.0,104150.0,0.0160023]
[1737672075097,0.39547758,104160.0,104150.0,0.0160023]
[1737672075505,0.39747758,104160.0,104150.0,0.0160023]
[1737672075703,0.23944749,104160.0,104150.0,0.0170023]
[1737672075910,0.23944749,104160.0,104150.0,0.0160023]
[1737672076409,0.24144749,104160.0,104150.0,0.0160023]
[1737672076830,0.22144749,104160.0,104150.0,0.0160023]
[1737672077411,0.23129469,104160.0,104150.0,0.0160023]
[1737672079026,0.27005015,104160.0,104150.0,0.0160023]
[1737672079429,0.25005015,104160.0,104150.0,0.0160023]
[1737672081018,0.27005015,104160.0,104150.0,0.0160023]
[1737672081450,0.25005015,104160.0,104150.0,0.0160023]
[1737672081690,0.25005015,104160.0,104150.0,0.0110023]
[1737672083290,0.27005015,104160.0,104150.0,0.0110023]
[1737672083906,0.25005015,104160.0,104150.0,0.0110023]
[1737672084324,0.116024,104140.0,104130.0,0.0001424]
[1737672084538,0.4820583,104140.0,104130.0,0.0001424]
[1737672085481,0.5120583,104140.0,104130.0,0.0001424]
[1737672085674,0.096052,104110.0,104100.0,0.0001424]
[1737672085880,0.19339929,104110.0,104100.0,0.0001424]
[1737672086306,0.23639929,104110.0,104100.0,0.0001424]
[1737672086719,0.29429929,104110.0,104100.0,0.0001424]
[1737672087132,0.29429929,104110.0,104100.0,0.00563564]
[1737672087133,0.31529929,104110.0,104100.0,0.00563564]
[1737672087749,0.31529929,104110.0,104100.0,0.00263564]
[1737672088011,0.31729929,104110.0,104100.0,0.00263564]
[1737672088223,0.36729929,104110.0,104100.0,0.00263564]
[1737672088656,0.36629929,104110.0,104100.0,0.00063564]
[1737672088865,0.46464658,104110.0,104100.0,0.00063564]
[1737672089071,0.37717594,104110.0,104100.0,0.00063564]
[1737672089276,0.32717594,104110.0,104100.0,0.00063564]
[1737672089687,0.30717594,104110.0,104100.0,0.00063564]
[1737672091039,2.30717594,104110.0,104100.0,0.00063564]
[1737672091264,2.32717594,104110.0,104100.0,0.00063564]
[1737672091472,0.11607,104090.0,104080.0,0.0087429]
[1737672091691,0.5399043,104090.0,104080.0,0.00889081]
[1737672092110,0.5599043,104090.0,104080.0,0.00889081]
[1737672092326,0.6099043,104090.0,104080.0,0.00889081]
[1737672092533,0.184779,104080.0,104070.0,0.01389264]
[1737672092736,0.26212629,104080.0,104070.0,0.01404064]
[1737672092960,0.21642629,104080.0,104070.0,0.01404064]
[1737672093549,0.21642629,104080.0,104070.0,0.000148]
[1737672093986,0.21842629,104080.0,104070.0,0.000148]
[1737672094224,0.121079,104080.0,104070.0,0.000148]
[1737672094654,0.28842629,104080.0,104070.0,0.000148]
[1737672094859,0.21842629,104080.0,104070.0,0.000148]
[1737672095067,0.22853078,104080.0,104070.0,0.000148]
[1737672095272,0.002,104080.0,104070.0,0.15005941]
[1737672095450,0.002,104080.0,104070.0,0.3634957]
[1737672096104,0.003,104080.0,104070.0,0.39768082]
[1737672096313,0.002,104080.0,104070.0,0.39768082]
[1737672096520,2.192106,104110.0,104080.0,0.192143]
[1737672096722,2.192106,104110.0,104090.0,0.288207]
[1737672096723,2.288161,104110.0,104090.0,0.288207]
[1737672096985,2.288161,104110.0,104100.0,0.15]
[1737672097202,2.288161,104110.0,104070.0,0.01502653]
[1737672097203,0.097079,104080.0,104070.0,0.01502653]
[1737672097412,0.096107,104050.0,104040.0,0.0160024]
[1737672097637,0.21645429,104050.0,104040.0,0.0160024]
[1737672097845,0.21645429,104050.0,104040.0,0.01649613]
[1737672098504,0.34705429,104050.0,104040.0,0.01649613]
[1737672099966,0.30005429,104050.0,104040.0,0.01649613]
[1737672100409,0.096135,104020.0,104010.0,0.00996]
[1737672100621,0.19348229,104020.0,104010.0,0.01010817]
[1737672100835,0.21648229,104020.0,104010.0,0.01010817]
[1737672101056,0.21648229,104020.0,104010.0,0.16010817]
[1737672101274,0.12034729,104020.0,104010.0,0.01010817]
[1737672101488,0.023,104020.0,104010.0,0.10625217]
[1737672101678,0.024,104020.0,104010.0,0.10625217]
[1737672101897,0.024,104020.0,104010.0,0.25625217]
[1737672102733,0.5902693,104020.0,104010.0,0.01010817]
[1737672103095,0.5431693,104020.0,104010.0,0.01010817]
[1737672103516,0.002,104020.0,104010.0,0.10625217]
[1737672103715,0.001,104020.0,104010.0,0.25625217]
[1737672104123,0.005,104020.0,104010.0,0.25625217]
[1737672104755,0.005,104020.0,104010.0,0.35359946]
[1737672105176,0.198113,104050.0,104040.0,0.15]
[1737672105384,0.31546029,104050.0,104040.0,0.15]
[1737672105583,0.36546029,104050.0,104040.0,0.15]
[1737672105820,0.31546029,104050.0,104040.0,0.15]
[1737672106034,0.29546029,104050.0,104040.0,0.15]
[1737672106209,0.56079429,104050.0,104030.0,0.246125]
[1737672106456,0.65690729,104050.0,104030.0,0.438376]
[1737672106666,0.119135,104020.0,104010.0,0.01010817]
[1737672106878,0.4621693,104020.0,104010.0,0.01010817]
[1737672107436,0.4631693,104020.0,104010.0,0.01010817]
[1737672107819,0.4621693,104020.0,104010.0,0.01010817]
[1737672108423,0.4640693,104020.0,104010.0,0.00380817]
[1737672108834,0.4650693,104020.0,104010.0,0.00380817]
[1737672109318,0.48384019,104020.0,104010.0,0.00380817]
[1737672109770,0.48384019,104020.0,103940.0,0.096204]
[1737672109771,0.096192,103960.0,103940.0,0.096204]
[1737672110019,0.24568701,103970.0,103940.0,0.19255423]
[1737672110169,0.09619,103960.0,103950.0,0.15]
[1737672110391,0.09619,103960.0,103940.0,0.29420544]
[1737672110601,0.7277873,103970.0,103950.0,0.00543755]
[1737672110779,0.8239753,103970.0,103950.0,0.00543755]
[1737672111003,0.096174,103980.0,103960.0,0.096185]
[1737672111210,0.096172,103980.0,103970.0,0.15]
[1737672111419,0.119172,103980.0,103970.0,0.15]
[1737672111618,0.023,103980.0,103970.0,0.15]
[1737672111831,0.023,103980.0,103960.0,0.19238]
[1737672112034,0.72653501,103990.0,103870.0,0.08345921]
[1737672112035,0.0981,103930.0,103870.0,0.08345921]
[1737672112255,0.36195101,103880.0,103870.0,0.09341581]
[1737672112472,0.096264,103880.0,103870.0,0.09341581]
[1737672112679,0.51718001,103900.0,103870.0,0.09341581]
[1737672112889,0.096264,103880.0,103870.0,0.09341581]
[1737672113151,0.09734729,103880.0,103870.0,0.09341581]
[1737672113357,0.09734729,103880.0,103870.0,0.38272362]
[1737672113570,0.079,103900.0,103890.0,0.15]
[1737672113782,0.09734729,103900.0,103890.0,0.290133]
[1737672113986,0.371664,103930.0,103900.0,0.28872]
[1737672114195,0.371664,103930.0,103910.0,0.15]
[1737672114196,0.18034729,103930.0,103910.0,0.15]
[1737672114410,0.09734729,103930.0,103920.0,0.096227]
[1737672114612,0.0962,103950.0,103930.0,0.096217]
[1737672114818,0.09734729,103940.0,103920.0,0.192443]
[1737672115027,0.09734729,103940.0,103930.0,0.096218]
[1737672115260,0.42488401,103960.0,103940.0,0.096208]
[1737672115459,0.09734729,103950.0,103940.0,0.438623]
[1737672116098,0.32868701,103960.0,103950.0,0.2462]
[1737672116318,0.4260343,103960.0,103950.0,0.26723495]
[1737672116489,0.18034729,103960.0,103950.0,0.26723495]
[1737672117039,0.09734729,103960.0,103950.0,0.26723495]
[1737672117406,0.55372159,103980.0,103960.0,0.288564]
[1737672117606,0.09734729,103970.0,103960.0,0.438564]
[1737672118932,0.001,103970.0,103960.0,0.438564]
[1737672120569,0.083,103990.0,103970.0,0.15]
[1737672120736,0.18034729,103990.0,103980.0,0.096172]
[1737672121319,0.20334729,103990.0,103980.0,0.096172]
[1737672121779,0.20349446,103990.0,103980.0,0.096172]
[1737672121951,0.20749446,103990.0,103980.0,0.096172]
[1737672122633,0.21049446,103990.0,103980.0,0.096172]
[1737672123101,0.20749446,103990.0,103980.0,0.096172]
[1737672123331,0.20749446,103990.0,103980.0,0.1016645]
[1737672123541,0.21049446,103990.0,103980.0,0.1016645]
[1737672126773,0.12749446,103990.0,103980.0,0.1016645]
[1737672128074,0.12749446,103990.0,103980.0,0.096172]
[1737672130274,0.12749446,103990.0,103980.0,0.10169405]
[1737672130456,0.03014717,103990.0,103980.0,0.10169405]
[1737672130899,0.03014717,103990.0,103980.0,0.096172]
[1737672133134,0.03044706,103990.0,103980.0,0.096172]
[1737672133571,0.00744706,103990.0,103980.0,0.34351929]
[1737672134138,0.288416,104020.0,103980.0,0.30481318]
[1737672134350,0.096117,104040.0,104020.0,0.096135]
[1737672134565,0.096117,104040.0,104020.0,0.438394]
[1737672134566,0.09749541,104030.0,104020.0,0.438394]
[1737672134770,0.00014812,104030.0,104020.0,0.438394]
[1737672136413,0.00114812,104030.0,104020.0,0.438394]
[1737672136632,0.00114812,104030.0,104020.0,0.53574129]
[1737672137312,0.00214812,104030.0,104020.0,0.54074129]
[1737672142229,0.00194812,104030.0,104020.0,0.54074129]
[1737672143188,0.00194812,104030.0,104020.0,0.251135]
[1737672143394,0.00154812,104030.0,104020.0,0.251135]
[1737672143590,0.02454812,104030.0,104020.0,0.005]
[1737672143796,0.12067412,104030.0,104020.0,0.005]
[1737672144018,0.023,104030.0,104020.0,0.15]
[1737672144219,0.024,104030.0,104020.0,0.151]
[1737672144423,0.025,104030.0,104020.0,0.159]
[1737672144631,0.120326,104030.0,104020.0,0.159]
[1737672144807,0.119326,104030.0,104020.0,0.158]
[1737672145016,0.119326,104030.0,104020.0,0.159]
[1737672145246,0.118326,104030.0,104020.0,0.151]
[1737672145435,0.119326,104030.0,104020.0,0.159]
[1737672145923,0.117726,104030.0,104020.0,0.009]
[1737672146118,0.21507329,104030.0,104020.0,0.009]
[1737672147289,0.21187329,104030.0,104020.0,0.009]
[1737672147641,0.21187329,104030.0,104020.0,0.001]
[1737672147841,0.096144,104010.0,104000.0,0.15]
[1737672149262,0.023,104010.0,104000.0,0.15]
[1737672149991,0.29279129,104010.0,104000.0,0.002]
[1737672150313,0.196444,104010.0,104000.0,0.005]
[1737672150808,0.196444,104010.0,104000.0,0.003]
[1737672151046,0.119153,104000.0,103990.0,0.0001424]
[1737672151268,0.21650029,104000.0,103990.0,0.0001424]
[1737672151686,0.21650029,104000.0,103990.0,0.00127256]
[1737672151901,0.21650029,104000.0,103990.0,0.0001424]
[1737672152105,0.21650029,104000.0,103990.0,0.00338832]
[1737672152321,0.2782597,104000.0,103990.0,0.0001424]
[1737672152530,0.2782597,104000.0,103990.0,0.00341917]
[1737672152751,0.2782597,104000.0,103990.0,0.0001424]
[1737672152958,0.24513931,104000.0,103990.0,0.00331467]
[1737672153191,0.24513931,104000.0,103990.0,0.0001424]
[1737672153386,0.24513931,104000.0,103990.0,0.00531467]
[1737672153616,0.24513931,104000.0,103990.0,0.0021424]
[1737672153825,0.24513931,104000.0,103990.0,0.00828397]
[1737672154030,0.24613931,104000.0,103990.0,0.0051424]
[1737672154210,0.24613931,104000.0,103990.0,0.00828534]
[1737672154450,0.21750029,104000.0,103990.0,0.00828534]
[1737672155692,0.22582262,104000.0,103990.0,0.00828534]
[1737672156840,0.22532262,104000.0,103990.0,0.00828534]
[1737672157048,0.48238951,104000.0,103990.0,0.00628534]
[1737672157287,0.48138951,104000.0,103990.0,0.0001424]
[1737672157459,0.48338951,104000.0,103990.0,0.0001424]
[1737672157594,0.39004222,104000.0,103990.0,0.0001424]
[1737672157796,0.43404222,104000.0,103990.0,0.0001424]
[1737672158270,0.43804222,104000.0,103990.0,0.0001424]
[1737672158550,0.44004222,104000.0,103990.0,0.0001424]
[1737672159422,0.39004222,104000.0,103990.0,0.0001424]
[1737672159601,0.44004222,104000.0,103990.0,0.0001424]
[1737672160312,0.39004222,104000.0,103990.0,0.0001424]
[1737672161602,0.44004222,104000.0,103990.0,0.0001424]
[1737672162519,0.39004222,104000.0,103990.0,0.0001424]
[1737672166865,0.23032262,104000.0,103990.0,0.0001424]
[1737672170446,0.44004222,104000.0,103990.0,0.0001424]
[1737672170650,0.44004222,104000.0,103990.0,1e-08]
[1737672170883,0.192344,103980.0,103950.0,0.1977426]
[1737672171061,0.215373,103970.0,103950.0,0.1977426]
[1737672171311,0.09619,103960.0,103950.0,0.1977426]
[1737672172037,0.09619,103960.0,103950.0,0.04789072]
[1737672172364,0.09619,103960.0,103950.0,0.20289072]
[1737672172585,0.504934,103970.0,103950.0,0.14408972]
[1737672172752,0.504934,103970.0,103950.0,0.04789072]
[1737672172953,0.002,103960.0,103950.0,0.20289072]
[1737672173320,0.002,103960.0,103950.0,0.19989072]
[1737672173522,0.001,103960.0,103950.0,0.19789072]
[1737672173729,0.002,103960.0,103950.0,0.20289072]
[1737672173959,0.002,103960.0,103950.0,0.29909072]
[1737672174942,0.002,103960.0,103950.0,0.29709072]
[1737672175285,0.003,103960.0,103950.0,0.29909072]
[1737672176212,0.003,103960.0,103950.0,0.20289072]
[1737672176836,0.09919,103960.0,103950.0,0.20289072]
[1737672177641,0.003,103960.0,103950.0,0.20289072]
[1737672178241,0.09919,103960.0,103950.0,0.20289072]
[1737672178799,0.003,103960.0,103950.0,0.20289072]
[1737672180010,0.003,103960.0,103950.0,0.29909072]
[1737672180246,0.003,103960.0,103950.0,0.20289072]
[1737672180483,0.09919,103960.0,103950.0,0.20289072]
[1737672180682,0.12219,103960.0,103950.0,0.00529072]
[1737672197297,0.003,103960.0,103950.0,0.00529072]
[1737672197699,0.003,103960.0,103950.0,0.25149072]
[1737672198145,0.003,103960.0,103950.0,0.15529072]
[1737672198844,0.003,103960.0,103950.0,0.25149072]
[1737672198971,0.003,103960.0,103950.0,0.34883801]
[1737672200810,0.00189236,103960.0,103950.0,0.34883801]
[1737672204658,0.00189236,103960.0,103950.0,0.3561424]
[1737672206300,0.00337236,103960.0,103950.0,0.3561424]
[1737672214631,0.00337236,103960.0,103950.0,0.3761424]
[1737672216771,0.0036714,103960.0,103950.0,0.3761424]
[1737672231359,0.0788,103980.0,103960.0,0.1994]
[1737672231561,0.00029904,103990.0,103980.0,0.096172]
[1737672231817,0.00029904,103990.0,103980.0,0.34351929]
[1737672232039,0.00029904,103990.0,103980.0,0.37302351]
[1737672232412,0.00029904,103990.0,103980.0,0.42302351]
[1737672232656,0.00029904,103990.0,103980.0,0.39351929]
[1737672232887,0.00129904,103990.0,103980.0,0.39751929]
[1737672233413,0.00229904,103990.0,103980.0,0.39951929]
[1737672234224,0.00129904,103990.0,103980.0,0.39551929]
[1737672234657,0.00229904,103990.0,103980.0,0.43091857]
[1737672235244,0.00229904,103990.0,103980.0,0.43854258]
[1737672237261,0.00229904,103990.0,103980.0,0.45790974]
[1737672240387,0.00229904,103990.0,103980.0,0.45151046]
[1737672240788,0.00229904,103990.0,103980.0,0.49671046]
[1737672241746,0.00229904,103990.0,103980.0,0.52608357]
[1737672242329,0.00029904,104000.0,103990.0,0.316163]
[1737672242643,0.00029904,104000.0,103990.0,0.73102262]
[1737672243545,0.00029904,104000.0,103990.0,0.73117074]
[1737672244677,0.00029904,104000.0,103990.0,0.77997074]
[1737672245025,0.00129904,104000.0,103990.0,0.79797074]
[1737672245440,0.00029904,104000.0,103990.0,0.78897074]
[1737672245893,0.00029904,104000.0,103990.0,0.79797074]
[1737672246925,0.00029904,104000.0,103990.0,0.80933074]
[1737672250510,1e-08,104000.0,103990.0,0.80933074]
[1737672250979,1e-08,104000.0,103990.0,0.83233074]
[1737672251180,0.00029883,104030.0,104020.0,0.266135]
[1737672251501,0.00029883,104030.0,104020.0,0.57014639]
[1737672252643,0.00129883,104030.0,104020.0,0.57614639]
[1737672253381,0.00129883,104030.0,104020.0,0.58514639]
[1737672255392,0.00129883,104030.0,104020.0,0.53514639]
[1737672255592,0.00129883,104030.0,104020.0,0.35848229]
[1737672255806,0.07779883,104030.0,104020.0,0.35848229]
[1737672256018,0.22212483,104030.0,104020.0,0.015]
[1737672256228,0.24512483,104030.0,104020.0,0.015]
[1737672256848,0.24412483,104030.0,104020.0,0.01535512]
[1737672257022,0.07149883,104030.0,104000.0,0.096152]
[1737672257385,0.561388,104020.0,104000.0,0.19814921]
[1737672257558,0.561388,104020.0,104000.0,0.38580529]
[1737672257783,0.369113,104020.0,104010.0,0.15]
[1737672258461,0.369113,104020.0,104010.0,0.00470786]
[1737672258866,0.369113,104020.0,104000.0,0.38281226]
[1737672259086,0.561394,104020.0,104000.0,0.38281226]
[1737672259585,0.096144,104010.0,104000.0,0.008]
[1737672260125,0.096144,104010.0,104000.0,0.007]
[1737672260417,0.179444,104010.0,104000.0,0.007]
[1737672260787,0.371744,104010.0,103990.0,0.28861512]
[1737672261192,0.372744,104010.0,104000.0,0.011]
[1737672261398,0.372744,104010.0,104000.0,0.161]
[1737672261608,0.372744,104010.0,104000.0,0.159]
[1737672262379,0.371744,104010.0,104000.0,0.15]
[1737672263331,0.371744,104010.0,104000.0,0.159]
[1737672263506,0.371744,104010.0,104000.0,0.161]
[1737672264426,0.58893142,104010.0,104000.0,0.011]
[1737672264625,0.5985629,104010.0,104000.0,0.011]
[1737672264865,0.49209129,104010.0,104000.0,0.011]
[1737672265586,0.49209129,104010.0,104000.0,0.0111424]
[1737672268236,0.25999544,104030.0,104000.0,0.0111424]
[1737672268602,0.174735,104020.0,104010.0,0.246143]
[1737672269262,0.0786,104020.0,104010.0,0.246143]
[1737672269740,0.174735,104020.0,104010.0,0.246143]
[1737672270256,0.0786,104020.0,104010.0,0.246143]
[1737672270578,0.0806,104020.0,104010.0,0.246143]
[1737672270806,0.08540668,104020.0,104010.0,0.28747984]
[1737672271006,0.08740668,104020.0,104010.0,0.28747984]
[1737672273290,0.0826,104020.0,104010.0,0.28747984]
[1737672273696,0.0806,104020.0,104010.0,0.28747984]
[1737672274161,0.0806,104020.0,104010.0,0.28847984]
[1737672274650,0.0806,104020.0,104010.0,0.28747984]
[1737672275485,0.0786,104020.0,104010.0,0.28747984]
[1737672275811,0.0786,104020.0,104010.0,0.29647984]
[1737672276023,0.0786,104020.0,104010.0,0.29847984]
[1737672276890,0.3286,104020.0,104010.0,0.29847984]
[1737672277914,0.3286,104020.0,104010.0,0.29862224]
[1737672278034,0.32889904,104020.0,104010.0,0.29862224]
[1737672281811,0.32889904,104020.0,104010.0,0.31178886]
[1737672287086,0.32889904,104020.0,104010.0,0.29862224]
[1737672289503,0.25029904,104020.0,104010.0,0.29862224]
[1737672297461,0.25029904,104020.0,104010.0,0.2572854]
[1737672303218,0.25029904,104020.0,104010.0,0.2704892]
[1737672303420,0.25029904,104020.0,104010.0,0.36783649]
[1737672308360,0.25029904,104020.0,104010.0,0.41373649]
[1737672310714,0.25029904,104020.0,104010.0,0.43373649]
[1737672314351,0.25029904,104020.0,104010.0,0.42053269]
[1737672315029,0.25029904,104020.0,104010.0,0.43998051]
[1737672316938,0.25029904,104020.0,104010.0,0.46939464]
[1737672317316,0.25029904,104020.0,104010.0,0.51939464]
[1737672318729,0.25029904,104020.0,104010.0,0.51039464]
[1737672319139,0.25029904,104020.0,104010.0,0.51939464]
[1737672319342,0.25029904,104020.0,104010.0,0.51739464]
[1737672319540,0.25029904,104020.0,104010.0,0.52339464]
[1737672319740,0.25129904,104020.0,104010.0,0.52339464]
[1737672323454,0.23207204,104020.0,104010.0,0.52339464]
[1737672324276,0.23107204,104020.0,104010.0,0.50839464]
[1737672324479,0.15416404,104020.0,104010.0,0.56829464]
[1737672324903,0.13493704,104020.0,104010.0,0.56829464]
[1737672325102,0.11571004,104020.0,104010.0,0.56829464]
[1737672325431,0.03880204,104020.0,104010.0,0.57629464]
[1737672325797,0.03880204,104020.0,104010.0,0.57129464]
[1737672326640,0.00034804,104020.0,104010.0,0.57129464]
[1737672326787,4e-08,104020.0,104010.0,0.78790697]
[1737672326983,4e-08,104020.0,104010.0,0.83790697]
[1737672327389,0.00025887,104030.0,104020.0,0.22]
[1737672327581,0.00025887,104030.0,104020.0,0.41348229]
[1737672328149,8.7e-07,104030.0,104020.0,0.41348229]
[1737672328759,8.7e-07,104030.0,104020.0,0.42848229]
[1737672329735,8.7e-07,104030.0,104020.0,0.42248229]
[1737672330092,8.7e-07,104030.0,104020.0,0.43048229]
[1737672330417,8.7e-07,104030.0,104020.0,0.42148229]
[1737672330679,8.7e-07,104030.0,104020.0,0.43048229]
[1737672332600,8.7e-07,104030.0,104020.0,0.43893397]
[1737672335016,8.7e-07,104030.0,104020.0,0.45017397]
[1737672335366,8.7e-07,104030.0,104020.0,0.40017397]
[1737672336528,8.7e-07,104030.0,104020.0,0.45017397]
[1737672336726,8.7e-07,104030.0,104020.0,0.47945022]
[1737672337074,8.7e-07,104030.0,104020.0,0.46821022]
[1737672337278,8.7e-07,104030.0,104020.0,0.47959252]
[1737672337481,8.7e-07,104030.0,104020.0,0.26835252]
[1737672337694,0.12360087,104030.0,104020.0,0.27654216]
[1737672337902,0.12360087,104030.0,104020.0,0.21907627]
[1737672338096,0.12360087,104030.0,104020.0,0.12172898]
[1737672338523,0.12360087,104030.0,104020.0,0.27172898]
[1737672338761,0.12360087,104030.0,104020.0,0.12172898]
[1737672339169,0.12360087,104030.0,104020.0,0.26372898]
[1737672339344,0.12360087,104030.0,104020.0,0.11372898]
[1737672339512,0.12360087,104030.0,104020.0,0.12072898]
[1737672339911,0.12360087,104030.0,104020.0,0.27072898]
[1737672340114,0.21972687,104030.0,104020.0,0.2532773]
[1737672340574,0.21972687,104030.0,104020.0,0.2622773]
[1737672340775,0.21972687,104030.0,104020.0,0.2532773]
[1737672340951,0.21972687,104030.0,104020.0,0.2462773]
[1737672341167,0.21972687,104030.0,104020.0,0.2602773]
[1737672344059,0.21972687,104030.0,104020.0,0.1102773]
[1737672344436,0.21972687,104030.0,104020.0,0.2602773]
[1737672345944,0.24272687,104030.0,104020.0,0.1641423]
[1737672347216,0.34918144,104030.0,104020.0,0.1641423]
[1737672347474,0.243735,104020.0,104010.0,0.1501424]
[1737672347686,0.34108229,104020.0,104010.0,0.1501424]
[1737672347895,0.34108229,104020.0,104010.0,0.0001424]
[1737672348138,0.54488415,104020.0,104010.0,0.0001424]
[1737672348549,0.44753686,104020.0,104010.0,0.0001424]
[1737672348963,0.44753686,104020.0,104010.0,0.0011424]
[1737672349456,0.44775052,104020.0,104010.0,0.0011424]
[1737672350231,0.44775052,104020.0,104010.0,0.0001424]
[1737672350689,0.45075052,104020.0,104010.0,0.0001424]
[1737672350892,0.60209781,104020.0,104010.0,0.0001424]
[1737672351094,0.34949857,104010.0,104000.0,0.0001424]
[1737672351429,0.44684586,104010.0,104000.0,0.0001424]
[1737672352363,0.44784586,104010.0,104000.0,0.0091424]
[1737672354538,0.44984586,104010.0,104000.0,0.0001424]
[1737672354950,0.45484586,104010.0,104000.0,0.0001424]
[1737672355185,0.48897682,104010.0,104000.0,0.0001424]
[1737672355385,0.45484586,104010.0,104000.0,0.0001424]
[1737672356073,0.56130043,104010.0,104000.0,0.0001424]
[1737672356234,0.61130043,104010.0,104000.0,0.0001424]
[1737672356436,0.63130043,104010.0,104000.0,0.0001424]
[1737672357807,0.023,104000.0,103990.0,0.00014812]
[1737672358006,0.40565486,104000.0,103990.0,0.00014812]
[1737672358980,0.45255486,104000.0,103990.0,0.00914812]
[1737672359499,0.44555486,104000.0,103990.0,0.00914812]
[1737672359907,0.54290215,104000.0,103990.0,0.00914812]
[1737672360259,0.44555486,104000.0,103990.0,0.00914812]
[1737672360420,0.44555486,104000.0,103990.0,0.00929042]
[1737672361181,0.44455486,104000.0,103990.0,0.00029042]
[1737672361481,0.44855486,104000.0,103990.0,0.00029042]
[1737672363134,0.45255486,104000.0,103990.0,0.00029042]
[1737672367363,0.52195869,104000.0,103990.0,0.00029042]
[1737672368227,0.54195869,104000.0,103990.0,0.00029042]
[1737672368464,0.54195869,104000.0,103980.0,0.0001424]
[1737672368465,0.02,103990.0,103980.0,0.0001424]
[1737672368674,0.02,103990.0,103950.0,0.0001426]
[1737672368675,0.24189,103960.0,103950.0,0.0001426]
[1737672368925,0.62214643,103960.0,103950.0,0.0001426]
[1737672369121,0.51569186,103960.0,103950.0,0.0001426]
[1737672369342,0.096218,103930.0,103920.0,0.0001428]
[1737672369559,0.39941986,103930.0,103920.0,0.0001428]
[1737672369978,0.42268935,103930.0,103920.0,0.0001428]
[1737672370203,0.39951461,103930.0,103920.0,0.0001428]
[1737672370441,0.46951461,103930.0,103920.0,0.0001428]
[1737672371304,0.30208157,103920.0,103910.0,0.0001423]
[1737672371537,0.39942886,103920.0,103910.0,0.0001423]
[1737672371954,0.20269157,103910.0,103900.0,0.08356689]
[1737672372165,0.19358429,103910.0,103900.0,0.08356689]
[1737672372593,0.42610655,103910.0,103900.0,0.08356689]
[1737672372821,0.50660655,103910.0,103900.0,0.00010768]
[1737672373462,0.50660655,103910.0,103900.0,0.00110768]
[1737672373869,0.42353886,103910.0,103900.0,0.00110768]
[1737672374099,0.42453886,103910.0,103900.0,0.01010768]
[1737672374480,0.40453886,103910.0,103900.0,0.00110768]
[1737672374683,0.40753886,103910.0,103900.0,0.00110768]
[1737672375207,0.40753886,103910.0,103900.0,0.00010768]
[1737672375431,0.50488615,103910.0,103900.0,0.00010768]
[1737672375644,0.50388615,103910.0,103900.0,0.00010768]
[1737672375850,0.51288615,103910.0,103900.0,0.00110768]
[1737672376061,0.50988615,103910.0,103900.0,0.00110768]
[1737672376410,0.51588615,103910.0,103900.0,0.00110768]
[1737672376612,0.07,103900.0,103890.0,0.0001423]
[1737672376820,0.46984786,103900.0,103890.0,0.0001423]
[1737672377476,0.56719515,103900.0,103890.0,0.0001423]
[1737672377944,0.57219515,103900.0,103890.0,0.0011423]
[1737672378120,0.60670243,103900.0,103890.0,0.0011423]
[1737672378267,0.62670243,103900.0,103890.0,0.0011423]
[1737672378469,0.55670243,103900.0,103890.0,0.0011423]
[1737672378708,0.56070243,103900.0,103890.0,0.0011423]
[1737672379071,0.119255,103890.0,103880.0,0.0001423]
[1737672379273,0.51031143,103890.0,103880.0,0.0001423]
[1737672379767,0.53031143,103890.0,103880.0,0.0001423]
[1737672380225,0.53331143,103890.0,103880.0,0.0001423]
[1737672380433,0.53331143,103890.0,103880.0,0.00063511]
[1737672380964,0.59604855,103890.0,103880.0,0.00063511]
[1737672381598,0.60204855,103890.0,103880.0,0.00163511]
[1737672381798,0.60804855,103890.0,103880.0,0.00263511]
[1737672381989,0.52831143,103890.0,103880.0,0.001]
[1737672382523,0.119274,103870.0,103860.0,0.0001]
[1737672382734,0.40117586,103870.0,103860.0,0.00024717]
[1737672384388,0.40717586,103870.0,103860.0,0.00024717]
[1737672384595,0.20362129,103870.0,103860.0,0.00024717]
[1737672384798,0.20362129,103870.0,103860.0,0.24653017]
[1737672384799,0.01,103870.0,103860.0,0.24653017]
[1737672385201,0.01,103870.0,103860.0,0.36387746]
[1737672385418,0.006,103870.0,103860.0,0.36387746]
[1737672385826,0.096248,103900.0,103890.0,0.15]
[1737672386003,0.19359529,103900.0,103890.0,0.15]
[1737672386199,0.19389454,103900.0,103890.0,0.246255]
[1737672387371,0.00029925,103900.0,103890.0,0.246255]
[1737672388166,0.19989254,103900.0,103890.0,0.15]
[1737672390470,0.20989254,103900.0,103890.0,0.15]
[1737672391856,0.01629925,103900.0,103890.0,0.246255]
[1737672393188,0.01329925,103900.0,103890.0,0.246255]
[1737672393395,0.01029925,103900.0,103890.0,0.246255]
[1737672393595,0.01029925,103900.0,103890.0,0.41140229]
[1737672393731,0.00129925,103900.0,103890.0,0.41340229]
[1737672394375,0.00129925,103900.0,103890.0,0.43340229]
[1737672394577,0.00029925,103900.0,103890.0,0.43140229]
[1737672394785,0.00129925,103900.0,103890.0,0.43240229]
[1737672394983,0.00229925,103900.0,103890.0,0.43840229]
[1737672395193,0.00229925,103900.0,103890.0,0.43640229]
[1737672395373,0.00229925,103900.0,103890.0,0.43240229]
[1737672395783,0.00329925,103900.0,103890.0,0.44040229]
[1737672396588,0.00129925,103900.0,103890.0,0.55990229]
[1737672397015,0.00229925,103900.0,103890.0,0.56190229]